bitfinex-derivatives/quotes_BTCF0:USTF0_20251219
["timestamp","ask_amount","ask_price","bid_price","bid_amount"]
[1766174262853,0.0001706,87928.0,87912.0,0.00572]
[1766174263550,0.0113802,87920.0,87912.0,0.00572]
[1766174263754,0.0113802,87920.0,87889.0,0.14201617]
[1766174263755,0.0113805,87918.0,87894.0,0.0113835]
[1766174263952,0.00572,87917.0,87896.0,0.0113832]
[1766174264147,0.00572,87917.0,87897.0,0.0113831]
[1766174264754,0.0001706,87916.0,87898.0,0.0001706]
[1766174265253,0.0001706,87916.0,87900.0,0.22658993]
[1766174269047,0.0001706,87916.0,87900.0,0.23230993]
[1766174269454,0.0001706,87916.0,87900.0,0.24369263]
[1766174269652,0.0001706,87916.0,87900.0,0.23230993]
[1766174269962,0.0113813,87912.0,87898.0,0.0001706]
[1766174270250,0.0001706,87916.0,87898.0,0.0001706]
[1766174270954,0.0001706,87916.0,87900.0,0.22658993]
[1766174271356,0.0001706,87916.0,87904.0,0.0113822]
[1766174271652,0.00452,87915.0,87900.0,0.22658993]
[1766174271855,0.23796893,87930.0,87906.0,0.22658993]
[1766174272155,0.00224,87929.0,87911.0,0.0113813]
[1766174272746,0.0024106,87929.0,87911.0,0.0115519]
[1766174273452,0.0024106,87929.0,87911.0,0.0001706]
[1766174273453,0.0113792,87928.0,87911.0,0.0001706]
[1766174274249,0.0113796,87925.0,87911.0,0.0001706]
[1766174274551,0.0113809,87915.0,87911.0,1e-07]
[1766174274855,0.0113809,87915.0,87890.0,0.23797393]
[1766174275058,0.00572,87918.0,87895.0,0.0113833]
[1766174275561,0.0113806,87917.0,87896.0,0.00572]
[1766174275950,0.0001706,87915.0,87898.0,0.0001706]
[1766174276848,0.011381,87914.0,87898.0,0.0001706]
[1766174278559,0.0115515,87915.0,87898.0,0.0001706]
[1766174280164,0.2266922,87910.0,87877.0,0.0804889]
[1766174280457,0.00572,87909.0,87871.0,0.0113865]
[1766174280648,0.0113841,87890.0,87867.0,0.011387]
[1766174280853,0.0113849,87884.0,87864.0,0.00316]
[1766174281151,0.0001706,87883.0,87868.0,0.0113868]
[1766174283053,0.0001706,87883.0,87870.0,0.2266922]
[1766174283648,0.0001706,87883.0,87864.0,0.0145474]
[1766174285059,0.0001706,87883.0,87867.0,0.0113869]
[1766174285659,0.0001706,87883.0,87864.0,0.00316]
[1766174286654,0.0001706,87883.0,87853.0,0.01129475]
[1766174286962,0.0001706,87883.0,87863.0,0.0113875]
[1766174288477,0.0001706,87883.0,87862.0,0.00572]
[1766174288767,0.2266922,87880.0,87862.0,0.00572]
[1766174289152,0.2266922,87880.0,87863.0,0.0113875]
[1766174289662,0.00572,87882.0,87862.0,0.00572]
[1766174290158,0.00572,87882.0,87866.0,0.0113871]
[1766174291359,0.00572,87882.0,87862.0,0.00572]
[1766174292363,0.00572,87882.0,87867.0,0.011387]
[1766174293256,0.0001706,87883.0,87862.0,0.0171077]
[1766174293564,0.00572,87882.0,87862.0,0.0171077]
[1766174294161,0.2266922,87880.0,87862.0,0.00572]
[1766174294358,0.00572,87879.0,87862.0,0.00572]
[1766174294558,0.2266922,87880.0,87862.0,0.00572]
[1766174294758,0.00572,87878.0,87862.0,0.00572]
[1766174295153,0.00572,87878.0,87863.0,0.0113875]
[1766174296266,0.00572,87878.0,87861.0,0.00572]
[1766174296764,0.00572,87878.0,87862.0,0.0113877]
[1766174297465,0.00572,87877.0,87862.0,0.0113877]
[1766174297766,0.00444,87876.0,87862.0,0.0113877]
[1766174300672,0.00444,87876.0,87861.0,0.0171078]
[1766174301067,0.00444,87876.0,87864.0,0.0113874]
[1766174302664,0.00444,87876.0,87861.0,0.00572]
[1766174303064,0.00444,87876.0,87862.0,0.0113877]
[1766174304280,0.00444,87876.0,87865.0,0.0113873]
[1766174305172,0.00444,87876.0,87868.0,0.0113869]
[1766174305380,0.0038,87877.0,87868.0,0.0113869]
[1766174305966,6e-07,87883.0,87874.0,0.0113861]
[1766174307079,6e-07,87883.0,87870.0,0.2382495]
[1766174307482,6e-07,87883.0,87870.0,0.0115573]
[1766174308474,6e-07,87883.0,87870.0,0.0001707]
[1766174308969,0.0113855,87879.0,87870.0,0.0001707]
[1766174309171,6e-07,87883.0,87870.0,0.0001707]
[1766174310079,6e-07,87883.0,87871.0,0.0113865]
[1766174311073,6e-07,87883.0,87870.0,0.0001707]
[1766174312480,0.00268,87882.0,87870.0,0.0001707]
[1766174313586,0.00268,87882.0,87870.0,1e-07]
[1766174313770,0.00268,87882.0,87858.0,0.0113882]
[1766174313771,0.0113856,87879.0,87858.0,0.0113882]
[1766174313970,0.011386,87876.0,87856.0,0.00572]
[1766174314177,0.22680922,87880.0,87859.0,0.011388]
[1766174314372,0.00268,87882.0,87859.0,0.011388]
[1766174314579,0.0113852,87881.0,87859.0,0.011388]
[1766174314772,0.0113856,87878.0,87856.0,0.00572]
[1766174318276,0.00268,87882.0,87856.0,0.00572]
[1766174319178,0.0113873,87865.0,87848.0,1.45392]
[1766174319887,0.0113868,87869.0,87848.0,1.4653094]
[1766174320083,0.0113868,87869.0,87848.0,1.45392]
[1766174325083,0.00448,87870.0,87850.0,0.0113892]
[1766174325480,0.0113868,87869.0,87848.0,0.00184]
[1766174325675,0.23128922,87870.0,87834.0,1e-07]
[1766174325882,0.23128922,87870.0,87830.0,0.22680922]
[1766174325883,0.22680922,87860.0,87830.0,0.00328]
[1766174326196,0.0171081,87859.0,87831.0,0.0113916]
[1766174326383,0.00572,87859.0,87840.0,0.0113905]
[1766174326691,8.483e-05,87858.0,87830.0,0.23008922]
[1766174326993,8.483e-05,87858.0,87843.0,0.0113901]
[1766174327585,8.483e-05,87858.0,87838.0,0.0113907]
[1766174330197,0.0113884,87857.0,87834.0,0.0113913]
[1766174330491,0.22680922,87850.0,87830.0,0.00328]
[1766174330688,0.00552,87849.0,87830.0,0.00328]
[1766174331093,0.00552,87849.0,87830.0,0.0146717]
[1766174331483,0.00552,87849.0,87830.0,0.00328]
[1766174331682,0.00552,87849.0,87825.0,0.0113924]
[1766174331891,0.0169094,87849.0,87825.0,0.0113924]
[1766174332688,0.22680922,87840.0,87810.0,9.631e-05]
[1766174332883,0.0001707,87834.0,87811.0,0.0032]
[1766174333081,0.0001707,87834.0,87811.0,0.11704723]
[1766174333383,0.0001707,87834.0,87817.0,0.0113935]
[1766174333691,8.483e-05,87858.0,87824.0,0.22680922]
[1766174333885,8.483e-05,87858.0,87840.0,0.22680922]
[1766174334085,8.483e-05,87858.0,87840.0,0.23252922]
[1766174334487,0.01,87877.0,87856.0,0.0113885]
[1766174334692,0.01,87877.0,87841.0,0.11383168]
[1766174334693,0.00316,87876.0,87850.0,0.0113892]
[1766174335782,0.0001707,87872.0,87854.0,0.0001707]
[1766174337392,0.0001707,87872.0,87854.0,0.0115594]
[1766174338496,0.0001707,87872.0,87854.0,0.0001707]
[1766174338897,0.00572,87871.0,87854.0,0.0001707]
[1766174339692,0.0001707,87872.0,87859.0,0.011388]
[1766174339898,0.0016,87872.0,87860.0,0.0113879]
[1766174340491,0.0016,87872.0,87854.0,0.0001707]
[1766174340697,0.0016,87872.0,87854.0,0.0115594]
[1766174340901,0.0017707,87872.0,87854.0,0.0115594]
[1766174343199,0.0017707,87872.0,87857.0,0.0113883]
[1766174343391,0.0017707,87872.0,87854.0,0.0001707]
[1766174343592,0.22680922,87870.0,87854.0,0.0001707]
[1766174344401,0.0001707,87872.0,87854.0,0.0001707]
[1766174344594,0.00572,87871.0,87854.0,0.0115594]
[1766174344900,0.00428,87870.0,87854.0,0.0115594]
[1766174345486,0.00428,87870.0,87857.0,0.0113883]
[1766174345690,0.0001707,87872.0,87859.0,0.0113881]
[1766174345892,0.0058907,87872.0,87859.0,0.0113881]
[1766174348404,0.0058907,87872.0,87854.0,0.0115594]
[1766174348700,0.0058907,87872.0,87857.0,0.0113883]
[1766174350799,0.01,87877.0,87856.0,0.0113884]
[1766174351007,0.01,87914.0,87867.0,0.22687864]
[1766174351302,0.00316,87913.0,87890.0,0.011384]
[1766174351495,0.00316,87913.0,87887.0,0.0113844]
[1766174351697,0.00316,87913.0,87881.0,0.00572]
[1766174351895,0.0001707,87906.0,87888.0,0.0001707]
[1766174354001,0.0115528,87906.0,87888.0,0.0001707]
[1766174354597,0.0113829,87899.0,87888.0,0.0001707]
[1766174354801,0.0113828,87900.0,87888.0,7e-07]
[1766174356408,0.23826144,87900.0,87888.0,7e-07]
[1766174357296,0.0113828,87900.0,87888.0,7e-07]
[1766174357501,0.23826144,87900.0,87888.0,7e-07]
[1766174357909,0.0113828,87900.0,87888.0,7e-07]
[1766174359011,0.0113833,87897.0,87888.0,7e-07]
[1766174359609,0.22687864,87900.0,87888.0,7e-07]
[1766174359801,0.0171027,87901.0,87888.0,7e-07]
[1766174362809,0.0113832,87897.0,87888.0,7e-07]
[1766174365610,0.0171027,87901.0,87888.0,7e-07]
[1766174368509,0.0113833,87897.0,87888.0,7e-07]
[1766174370114,0.0113834,87896.0,87888.0,7e-07]
[1766174370316,0.00572,87895.0,87888.0,7e-07]
[1766174376817,0.0171034,87895.0,87888.0,7e-07]
[1766174377711,0.0113838,87892.0,87888.0,7e-07]
[1766174377916,0.00572,87895.0,87860.0,0.0113879]
[1766174378123,0.22679452,87880.0,87860.0,0.23818242]
[1766174378324,0.0018,87879.0,87860.0,0.0113879]
[1766174378625,0.0018,87879.0,87863.0,0.0113875]
[1766174379209,0.0018,87879.0,87862.0,0.0001707]
[1766174382022,0.0018,87879.0,87863.0,0.0113875]
[1766174382220,0.0018007,87881.0,87869.0,0.22679452]
[1766174382424,0.22679452,87900.0,87873.0,0.0113862]
[1766174382625,0.0113831,87898.0,87880.0,0.22679452]
[1766174382826,0.00572,87897.0,87876.0,0.0113858]
[1766174383121,0.0113833,87896.0,87872.0,0.0113864]
[1766174383323,0.0001707,87892.0,87875.0,0.0001707]
[1766174383518,0.00572,87891.0,87875.0,0.0001707]
[1766174385130,0.0001707,87892.0,87880.0,0.22679452]
[1766174385323,0.00572,87898.0,87886.0,0.0113845]
[1766174386629,0.00572,87898.0,87882.0,0.0113851]
[1766174386819,0.00572,87898.0,87881.0,0.00572]
[1766174389131,0.00572,87898.0,87882.0,0.0113851]
[1766174389328,0.00572,87898.0,87881.0,0.00572]
[1766174390623,0.22679452,87891.0,87875.0,0.0001707]
[1766174391134,0.22679452,87885.0,87875.0,7e-07]
[1766174391334,0.0113855,87879.0,87857.0,0.0113883]
[1766174391523,0.00572,87878.0,87858.0,0.00572]
[1766174391722,0.00572,87878.0,87859.0,0.0036]
[1766174392125,0.00572,87878.0,87860.0,0.0113879]
[1766174392330,0.0058907,87878.0,87860.0,0.22696522]
[1766174392730,0.0058907,87878.0,87860.0,0.23835322]
[1766174393030,0.0058907,87878.0,87860.0,0.22696522]
[1766174395424,0.00248,87885.0,87868.0,0.22679452]
[1766174395737,0.00248,87885.0,87869.0,0.00572]
[1766174396428,0.0113849,87884.0,87869.0,0.00572]
[1766174396826,0.00248,87885.0,87869.0,0.00572]
[1766174397638,0.0138648,87885.0,87869.0,0.00572]
[1766174399139,0.00248,87885.0,87869.0,0.00572]
[1766174401539,0.00248,87885.0,87870.0,0.0113866]
[1766174401735,0.00248,87885.0,87869.0,0.00572]
[1766174401933,0.0001707,87886.0,87860.0,0.22696522]
[1766174401934,1e-07,87886.0,87860.0,0.0001707]
[1766174402123,0.0113784,87934.0,87888.0,0.0113843]
[1766174402327,0.23817602,87910.0,87880.0,0.22679452]
[1766174402524,0.01316,87914.0,87901.0,0.0113826]
[1766174402736,0.01316,87914.0,87891.0,0.00572]
[1766174402933,0.23817602,87910.0,87883.0,0.011385]
[1766174403133,0.00011339,87905.0,87888.0,0.0001707]
[1766174403333,0.00583339,87905.0,87888.0,0.0058907]
[1766174403731,0.0113846,87886.0,87846.0,0.08076948]
[1766174403929,0.00572,87887.0,87856.0,0.06238949]
[1766174404135,0.0113833,87896.0,87870.0,0.22679452]
[1766174404332,0.06134043,87928.0,87870.0,0.22679452]
[1766174404333,0.0036,87895.0,87874.0,0.0113861]
[1766174404842,0.0001707,87893.0,87876.0,0.0001707]
[1766174405345,0.22679452,87910.0,87890.0,0.22679452]
[1766174405641,0.00572,87909.0,87890.0,0.22679452]
[1766174405835,0.0113819,87907.0,87887.0,0.00148]
[1766174406035,0.00572,87909.0,87887.0,0.00148]
[1766174406340,0.00011339,87907.0,87887.0,0.00148]
[1766174406537,0.00011339,87907.0,87885.0,0.0113846]
[1766174406738,0.00011339,87907.0,87886.0,0.00572]
[1766174406939,0.011383,87898.0,87876.0,0.0001707]
[1766174407242,0.22679452,87890.0,87877.0,0.00572]
[1766174407545,0.23817862,87890.0,87877.0,0.00572]
[1766174407842,0.0113841,87890.0,87877.0,0.00572]
[1766174408041,0.0113846,87886.0,87876.0,7e-07]
[1766174408340,0.00572,87885.0,87871.0,0.0113864]
[1766174408735,0.00572,87885.0,87870.0,0.22679452]
[1766174409443,0.00572,87885.0,87869.0,0.0058907]
[1766174410246,0.0171048,87885.0,87869.0,0.0058907]
[1766174416441,0.00572,87885.0,87869.0,0.0058907]
[1766174417752,0.0113853,87881.0,87869.0,0.0001707]
[1766174418049,0.00572,87885.0,87854.0,1.4633487]
[1766174418249,0.00572,87885.0,87855.0,0.00572]
[1766174418554,0.0113856,87879.0,87857.0,0.0113883]
[1766174418955,0.0113856,87879.0,87859.0,0.0001707]
[1766174419345,0.011385,87883.0,87860.0,0.0113879]
[1766174419654,0.011385,87883.0,87859.0,0.0001707]
[1766174419854,0.00572,87885.0,87859.0,0.0001707]
[1766174420256,0.0113855,87880.0,87859.0,0.0115587]
[1766174421656,0.0113849,87884.0,87859.0,0.0115587]
[1766174423744,0.0113849,87884.0,87862.0,0.0113876]
[1766174423946,0.0171048,87885.0,87863.0,0.00572]
[1766174424258,0.0113852,87882.0,87863.0,0.00572]
[1766174424461,0.00572,87885.0,87863.0,0.00572]
[1766174424957,0.00572,87885.0,87864.0,0.0113874]
[1766174425254,0.00572,87885.0,87867.0,0.011387]
[1766174426544,0.0113828,87900.0,87870.0,0.28358052]
[1766174426750,0.0113816,87909.0,87884.0,0.0113848]
[1766174426951,0.0113795,87926.0,87884.0,0.0113848]
[1766174426952,0.00572,87910.0,87889.0,0.0113842]
[1766174427249,1.452,87926.0,87889.0,0.0113842]
[1766174427250,0.0113809,87915.0,87889.0,0.0113842]
[1766174427758,0.0001707,87910.0,87893.0,0.0001707]
[1766174427959,0.0001707,87910.0,87884.0,0.00572]
[1766174428260,0.0113817,87909.0,87884.0,0.00572]
[1766174429053,0.0113817,87909.0,87888.0,0.0001707]
[1766174429254,0.0113822,87905.0,87888.0,0.0001707]
[1766174430559,0.0115523,87910.0,87888.0,0.0001707]
[1766174431966,0.0001707,87910.0,87888.0,0.0001707]
[1766174432264,0.0113822,87905.0,87888.0,0.0001707]
[1766174432661,0.0115523,87910.0,87888.0,0.0001707]
[1766174434964,0.0001707,87910.0,87892.0,0.0113837]
[1766174435151,0.0001707,87910.0,87900.0,0.2267335]
[1766174435351,0.00496,87916.0,87900.0,0.2267335]
[1766174435568,0.00496,87916.0,87893.0,0.00188]
[1766174435757,0.0213811,87914.0,87893.0,0.00188]
[1766174436262,0.0213811,87914.0,87888.0,0.0001707]
[1766174436263,0.0113814,87911.0,87888.0,0.0001707]
[1766174436566,0.0113814,87911.0,87889.0,0.11739917]
[1766174437668,0.0001707,87912.0,87891.0,0.0113839]
[1766174438055,0.0001707,87912.0,87890.0,0.2267335]
[1766174438350,0.0001707,87912.0,87890.0,0.2381175]
[1766174441366,0.0001707,87912.0,87888.0,0.0001707]
[1766174441565,0.0113821,87906.0,87888.0,0.0001707]
[1766174441765,0.0113821,87906.0,87889.0,0.00364]
[1766174441963,0.00572,87908.0,87889.0,0.00364]
[1766174442364,0.0113819,87907.0,87888.0,0.0001707]
[1766174442570,0.0113819,87907.0,87889.0,0.00572]
[1766174442868,0.00572,87908.0,87889.0,0.00572]
[1766174443068,0.00572,87908.0,87889.0,0.0171042]
[1766174443964,0.00572,87908.0,87892.0,0.0113837]
[1766174444560,0.00572,87908.0,87890.0,0.2267335]
[1766174444768,0.00572,87908.0,87890.0,0.2381174]
[1766174445457,0.0001707,87912.0,87890.0,0.2381174]
[1766174446968,0.0113815,87910.0,87889.0,0.00572]
[1766174447473,0.0001707,87912.0,87890.0,0.011384]
[1766174447869,0.0001707,87912.0,87893.0,0.0113836]
[1766174450170,7e-07,87914.0,87903.0,0.0113823]
[1766174450371,0.2267335,87940.0,87900.0,0.2267335]
[1766174450372,0.00376,87922.0,87901.0,0.00572]
[1766174450872,0.01514,87922.0,87901.0,0.00572]
[1766174451263,0.00011339,87920.0,87903.0,0.0001707]
[1766174452672,0.0113804,87919.0,87903.0,0.0001707]
[1766174453074,0.0113805,87918.0,87903.0,0.0001707]
[1766174453582,0.00011339,87920.0,87903.0,0.0001707]
[1766174455768,0.00011339,87920.0,87903.0,0.011553]
[1766174456078,0.0113807,87916.0,87903.0,0.0001707]
[1766174456275,0.01149369,87920.0,87903.0,0.0001707]
[1766174457468,0.0113806,87917.0,87903.0,0.0001707]
[1766174458064,0.2267335,87913.0,87877.0,1.4516]
[1766174458271,0.00572,87912.0,87882.0,0.00316]
[1766174458867,0.0113832,87897.0,87875.0,0.0113859]
[1766174459074,0.0113836,87894.0,87880.0,0.0001707]
[1766174460175,0.0001707,87898.0,87882.0,0.011385]
[1766174460371,0.0115537,87898.0,87880.0,0.0001707]
[1766174460771,0.0001707,87898.0,87881.0,0.0213852]
[1766174461281,0.0001707,87898.0,87881.0,0.01]
[1766174461477,0.0115538,87898.0,87881.0,0.01]
[1766174462673,0.0113835,87895.0,87881.0,0.01]
[1766174463080,0.0001707,87898.0,87881.0,0.01]
[1766174463384,0.0113836,87894.0,87881.0,0.01]
[1766174464879,0.0115538,87898.0,87881.0,0.01]
[1766174467074,0.0001707,87898.0,87882.0,0.0113851]
[1766174467279,0.0115538,87898.0,87881.0,0.01]
[1766174468289,0.0001707,87898.0,87881.0,0.01]
[1766174468674,0.0001707,87898.0,87882.0,0.011385]
[1766174468878,0.0018107,87898.0,87885.0,0.0113846]
[1766174469376,0.06134043,87927.0,87886.0,0.11949923]
[1766174469577,0.02757047,87926.0,87900.0,0.2267335]
[1766174469776,0.0113797,87924.0,87901.0,0.0171025]
[1766174470489,0.00011306,87921.0,87904.0,0.0001706]
[1766174472179,0.01149316,87921.0,87904.0,0.0001706]
[1766174472380,0.00011306,87921.0,87904.0,0.0001706]
[1766174472991,0.00011306,87921.0,87910.0,0.2267335]
[1766174473187,0.00011306,87921.0,87904.0,0.0001706]
[1766174473583,3.06e-06,87921.0,87917.0,0.0113805]
[1766174473985,3.06e-06,87921.0,87904.0,0.0001706]
[1766174474386,3.06e-06,87921.0,87909.0,0.0113815]
[1766174474781,3.06e-06,87921.0,87904.0,0.0115527]
[1766174475498,1.45164,87945.0,87904.0,0.0115527]
[1766174475499,0.06134043,87961.0,87910.0,0.2267335]
[1766174475688,0.00572,87953.0,87930.0,0.2267335]
[1766174475891,0.00572,87953.0,87930.0,0.2438323]
[1766174476194,0.00572,87953.0,87930.0,0.0170988]
[1766174476585,0.00572,87953.0,87931.0,0.0001706]
[1766174476784,0.2367335,87950.0,87913.0,1.4516]
[1766174477088,0.0113773,87943.0,87918.0,0.0113803]
[1766174477288,0.2367335,87950.0,87921.0,0.0113799]
[1766174477289,0.00572,87942.0,87921.0,0.0113799]
[1766174477489,0.00572,87942.0,87916.0,0.0113806]
[1766174477687,0.0001706,87938.0,87920.0,0.0001706]
[1766174477884,0.0001706,87938.0,87911.0,0.0631328]
[1766174477885,0.011379,87929.0,87917.0,0.00572]
[1766174478092,0.0001706,87938.0,87918.0,0.0113804]
[1766174478489,0.0001706,87938.0,87921.0,0.01138]
[1766174478883,0.0001706,87938.0,87921.0,0.0115506]
[1766174479587,0.0001706,87938.0,87921.0,0.0001706]
[1766174480799,0.0001706,87938.0,87921.0,0.0115506]
[1766174481094,0.0001306,87938.0,87921.0,0.0115506]
[1766174481483,0.0001306,87938.0,87921.0,0.0001706]
[1766174482198,0.011379,87930.0,87903.0,0.0113824]
[1766174482494,0.0113793,87927.0,87904.0,0.00572]
[1766174482702,0.0149793,87927.0,87904.0,0.00572]
[1766174482994,0.0149793,87927.0,87907.0,0.0001706]
[1766174484495,0.0036,87927.0,87907.0,0.0001706]
[1766174484800,0.0036,87927.0,87908.0,0.0113816]
[1766174485499,0.00088,87929.0,87910.0,0.0113814]
[1766174485805,0.00088,87929.0,87911.0,0.00572]
[1766174486099,0.00088,87929.0,87911.0,0.11946299]
[1766174486301,0.0113793,87928.0,87907.0,0.0001706]
[1766174486493,0.0113793,87928.0,87908.0,0.00572]
[1766174486994,0.0001306,87938.0,87908.0,0.00572]
[1766174486995,0.0001306,87938.0,87909.0,0.11374299]
[1766174487295,0.0001306,87938.0,87922.0,0.0113799]
[1766174487603,0.0001306,87938.0,87920.0,0.00572]
[1766174489101,0.0001306,87938.0,87921.0,0.01138]
[1766174489407,0.0001306,87938.0,87920.0,0.0171001]
[1766174490405,6e-07,87938.0,87931.0,0.0113787]
[1766174490703,6e-07,87938.0,87920.0,0.28892261]
[1766174490704,6e-07,87938.0,87927.0,0.0170992]
[1766174491204,6e-07,87938.0,87930.0,0.0113788]
[1766174493400,6e-07,87938.0,87927.0,0.00572]
[1766174493903,6e-07,87938.0,87926.0,0.00572]
[1766174494806,6e-07,87938.0,87930.0,0.0113788]
[1766174497299,6e-07,87938.0,87926.0,0.0170994]
[1766174497505,6e-07,87938.0,87926.0,0.00572]
[1766174499004,6e-07,87938.0,87934.0,0.0113783]
[1766174499204,1.45116,87977.0,87941.0,0.0113774]
[1766174499517,0.0014,87966.0,87950.0,0.0113762]
[1766174499711,0.0015648,87958.0,87950.0,0.0113762]
[1766174499901,0.0015648,87958.0,87945.0,0.0113768]
[1766174500103,0.0113726,87979.0,87951.0,0.0113761]
[1766174500301,0.0001706,87974.0,87956.0,0.011546]
[1766174500819,0.0113734,87973.0,87956.0,0.0001706]
[1766174501316,0.0058906,87974.0,87956.0,0.0001706]
[1766174501519,0.0113738,87969.0,87956.0,0.0001706]
[1766174502117,0.0058906,87974.0,87956.0,0.0001706]
[1766174503117,0.00248,87973.0,87956.0,0.0001706]
[1766174503324,0.0001706,87974.0,87960.0,0.011375]
[1766174503621,0.28314654,88000.0,87960.0,0.011375]
[1766174503622,1.45104,88007.0,87961.0,1.4623748]
[1766174503811,0.01137,88000.0,87973.0,0.0113733]
[1766174504006,0.0113709,87993.0,87970.0,0.00572]
[1766174504212,0.0036,87992.0,87970.0,0.00572]
[1766174504409,0.0036,87992.0,87971.0,0.0113736]
[1766174504609,0.00017027,87990.0,87973.0,0.00017051]
[1766174505315,0.00017027,87990.0,87974.0,0.0113732]
[1766174506114,0.00017027,87990.0,87973.0,0.00017051]
[1766174506421,0.00016,88004.0,87973.0,0.00017051]
[1766174506616,0.0113695,88003.0,87977.0,0.0113727]
[1766174506913,0.00016,88004.0,87973.0,0.00017051]
[1766174507620,0.0113706,87995.0,87973.0,0.00017051]
[1766174508024,0.00016,88004.0,87973.0,0.00017051]
[1766174508223,0.011371,87992.0,87973.0,0.00017051]
[1766174508822,0.0113714,87988.0,87973.0,0.00017051]
[1766174509018,0.00564,87990.0,87973.0,1e-08]
[1766174510117,0.0058105,87990.0,87973.0,1e-08]
[1766174511825,0.0113728,87978.0,87973.0,1e-08]
[1766174512320,0.28895704,87990.0,87973.0,1e-08]
[1766174512321,0.0058105,87990.0,87973.0,1e-08]
[1766174512520,0.0113723,87981.0,87973.0,1e-08]
[1766174513612,0.0113718,87985.0,87973.0,1e-08]
[1766174514010,0.0001705,87990.0,87973.0,1e-08]
[1766174514211,0.0001705,87990.0,87981.0,0.0113722]
[1766174514426,5e-07,87990.0,87981.0,0.0113722]
[1766174514625,5e-07,87990.0,87980.0,0.28314654]
[1766174514825,5e-07,87990.0,87975.0,0.00572]
[1766174515523,5e-07,87990.0,87976.0,0.0113729]
[1766174515919,5e-07,87990.0,87975.0,0.00572]
[1766174519728,5e-07,87990.0,87975.0,0.017093]
[1766174519928,5e-07,87990.0,87975.0,0.00572]
[1766174520133,5e-07,87990.0,87984.0,0.0113718]
[1766174520628,0.00156,87999.0,87984.0,0.0113718]
[1766174520932,0.00156,87999.0,87983.0,0.011372]
[1766174521124,0.0113676,88018.0,87994.0,0.0113705]
[1766174521424,0.00232,88016.0,87997.0,0.00017051]
[1766174521814,0.01137,88000.0,87997.0,1e-08]
[1766174522019,0.0113705,87996.0,87972.0,0.0113734]
[1766174522224,0.0113705,87996.0,87973.0,0.00572]
[1766174522528,0.0113708,87993.0,87973.0,0.11934797]
[1766174522921,0.00017051,87992.0,87974.0,0.00017051]
[1766174525225,0.00017051,87992.0,87975.0,0.00572]
[1766174525530,0.00017051,87992.0,87974.0,1e-08]
[1766174525730,0.0113731,87975.0,87974.0,1e-08]
[1766174525918,0.0113736,87971.0,87948.0,1.45028]
[1766174526124,0.0113731,87976.0,87954.0,0.01572]
[1766174526525,0.00572,87979.0,87954.0,0.01572]
[1766174526822,0.00017051,87975.0,87958.0,0.01154581]
[1766174527133,0.00017051,87975.0,87961.0,0.0113748]
[1766174527334,0.00017051,87975.0,87958.0,0.00017051]
[1766174528141,0.0113737,87970.0,87958.0,0.00017051]
[1766174528317,0.0113736,87972.0,87958.0,5.1e-07]
[1766174528735,0.00017051,87975.0,87958.0,5.1e-07]
[1766174530233,0.0113739,87969.0,87958.0,5.1e-07]
[1766174531523,0.0170939,87969.0,87958.0,5.1e-07]
[1766174531929,0.0113746,87964.0,87958.0,5.1e-07]
[1766174532130,0.0113746,87964.0,87940.0,1.4504]
[1766174532343,0.0113746,87964.0,87946.0,0.00572]
[1766174533027,0.011374,87968.0,87946.0,0.00572]
[1766174533229,0.011374,87968.0,87948.0,0.00017051]
[1766174533431,0.00572,87969.0,87948.0,0.00017051]
[1766174533432,0.0170939,87969.0,87948.0,0.00017051]
[1766174533624,0.0113741,87967.0,87948.0,0.00017051]
[1766174534630,0.00572,87969.0,87948.0,0.00017051]
[1766174535039,0.0113741,87967.0,87948.0,0.00017051]
[1766174538034,0.00572,87969.0,87948.0,0.00017051]
[1766174538243,0.011374,87968.0,87948.0,0.00017051]
[1766174538840,0.00017051,87975.0,87950.0,0.28314654]
[1766174539042,0.00017051,87975.0,87963.0,0.0113745]
[1766174539539,0.00017051,87975.0,87959.0,0.0113751]
[1766174539946,0.00017051,87975.0,87956.0,0.00572]
[1766174541545,0.00017051,87975.0,87948.0,0.00017051]
[1766174541546,0.0113737,87970.0,87948.0,0.00017051]
[1766174541746,0.00236,87969.0,87948.0,0.00017051]
[1766174541946,0.011374,87968.0,87948.0,0.00017051]
[1766174542332,0.00236,87969.0,87939.0,0.00010586]
[1766174542532,0.0113749,87962.0,87939.0,0.00010586]
[1766174542846,0.0113769,87946.0,87922.0,1.45052]
[1766174543044,0.0113769,87946.0,87923.0,0.00572]
[1766174543237,0.0113773,87943.0,87921.0,0.11942032]
[1766174543442,0.00017051,87941.0,87923.0,0.00017051]
[1766174543943,9.415e-05,87940.0,87923.0,0.00017051]
[1766174544132,0.0113782,87936.0,87923.0,5.1e-07]
[1766174544337,0.0113782,87936.0,87913.0,1.45624]
[1766174544534,0.0113782,87936.0,87911.0,0.0113813]
[1766174544842,0.28832069,87940.0,87911.0,0.004]
[1766174545046,0.28832069,87940.0,87910.0,0.00156]
[1766174545242,0.28832069,87940.0,87911.0,0.0113813]
[1766174545443,0.00517415,87940.0,87916.0,0.00017051]
[1766174546236,0.0113779,87938.0,87916.0,0.00017051]
[1766174546648,0.0113784,87934.0,87916.0,0.00017051]
[1766174547040,0.0113779,87938.0,87916.0,0.00017051]
[1766174549236,0.00517415,87940.0,87916.0,0.00017051]
[1766174549640,0.0113789,87931.0,87916.0,0.00017051]
[1766174549835,0.00168,87930.0,87916.0,0.00017051]
[1766174550241,0.01138,87922.0,87897.0,0.01152574]
[1766174550446,0.01138,87922.0,87898.0,0.00188]
[1766174550644,0.28482654,87930.0,87898.0,0.11561523]
[1766174550948,0.0113799,87923.0,87898.0,0.11561523]
[1766174551140,0.0001706,87919.0,87902.0,0.00011397]
[1766174552337,0.0036,87920.0,87909.0,0.0113815]
[1766174552851,0.0036,87920.0,87902.0,0.00011397]
[1766174553048,0.0036,87920.0,87909.0,0.0113815]
[1766174554543,0.0036,87920.0,87905.0,0.0113821]
[1766174554737,0.0036,87920.0,87908.0,0.0113817]
[1766174556453,0.0036,87920.0,87902.0,0.00011397]
[1766174556954,0.0036,87920.0,87903.0,0.0113823]
[1766174557352,0.0001706,87923.0,87902.0,0.00011397]
[1766174557543,0.0001706,87923.0,87908.0,0.0113817]
[1766174557744,0.0001706,87923.0,87904.0,0.0113822]
[1766174557943,0.0001706,87923.0,87907.0,0.0113818]
[1766174558944,0.0001706,87923.0,87902.0,0.00011397]
[1766174558945,0.0001706,87923.0,87903.0,0.0113824]
[1766174559151,0.0001706,87923.0,87906.0,0.0113819]
[1766174560254,0.0001706,87923.0,87909.0,0.0113815]
[1766174560449,6e-07,87923.0,87919.0,0.0113802]